[Event "African Games-chT 2019"]
[Site "Casablanca"]
[Date "2019.08.25"]
[Round "7.26"]
[White "Naipal, Hoolan"]
[Black "Eichab, Charles"]
[Result "0-1"]
[ECO "C05"]
[WhiteElo "1785"]
[BlackElo "2016"]
[Annotator "NA"]
[PlyCount "80"]
[EventDate "2019.08.24"]
[EventType "team-tourn"]
[EventCountry "MAR"]
[SourceTitle "playchess.com"]
[Source "ChessBase"]
[SourceQuality "1"]
[WhiteTeam "Mauritius"]
[BlackTeam "Namibia"]
[WhiteTeamCountry "MRI"]
[BlackTeamCountry "NAM"]
[TimeControl "900+10"]

1. e4 {[%emt 0:00:00]} e6 {[%emt 0:00:00]} 2. d4 {[%emt 0:00:00]} d5 {[%emt 0:00:00]} 3. Nd2 {[%emt 0:00:00]} Nf6 {[%emt 0:00:00]} 4. e5 {[%emt 0:00:09]} Nfd7 {[%emt 0:00:00]} 5. Bd3 {[%emt 0:00:02]} c5 {[%emt 0:00:02]} 6. c3 {[%emt 0:00:03]} Nc6 {[%emt 0:00:03]} 7. Ne2 {[%emt 0:00:02]} Qb6 {[%emt 0:00:47]} 8. Nf3 {[%emt 0:00:02]} f6 {[%emt 0:00:54]} 9. exf6 {[%emt 0:00:03]} Nxf6 {[%emt 0:00:02]} 10. O-O {[%emt 0:00:07]} Bd6 {[%emt 0:00:03]} 11. Bf4 {[%emt 0:02:46]} Bxf4 {[%emt 0:01:20]} 12. Nxf4 {[%emt 0:00:02]} O-O {[%emt 0:00:02]} 13. Re1 {[%emt 0:04:17]} cxd4 {[%emt 0:06:00]} 14. cxd4 {[%emt 0:00:31]} Qxb2 {[%emt 0:04:50]} 15. Re2 {[%emt 0:03:00]} Qb6 {[%emt 0:00:13]} 16. Nxe6 {[%emt 0:00:28]} Bxe6 {[%emt 0:00:27]} 17. Rxe6 {[%emt 0:00:03]} Rae8 {[%emt 0:00:06]} 18. Qe2 {[%emt 0:01:40]} Nxd4 {[%emt 0:00:45]} 19. Nxd4 {[%emt 0:00:28]} Qxd4 {[%emt 0:00:07]} 20. Re1 {[%emt 0:00:13]} Ne4 {[%emt 0:01:18]} 21. Bxe4 {[%emt 0:00:43]} dxe4 {[%emt 0:00:05]} 22. Rxe8 {[%emt 0:00:48]} Rxe8 {[%emt 0:00:03]} 23. Qe3 {[%emt 0:00:22]} Qxe3 {[%emt 0:00:38]} 24. Rxe3 {[%emt 0:00:02]} Kf7 {[%emt 0:00:02]} 25. Kf1 {[%emt 0:00:18]} Kf6 {[%emt 0:00:13]} 26. Ke2 {[%emt 0:00:06]} Rc8 {[%emt 0:00:17]} 27. Rxe4 {[%emt 0:00:06]} Rc2+ {[%emt 0:00:02]} 28. Kf3 {[%emt 0:00:05]} Rxa2 {[%emt 0:00:01]} 29. Rb4 {[%emt 0:00:37]} Ra3+ {[%emt 0:00:09]} 30. Ke4 {[%emt 0:00:14]} b6 {[%emt 0:00:10]} 31. f4 {[%emt 0:00:24]} Ra2 {[%emt 0:00:19]} 32. Kf3 {[%emt 0:00:08]} Rd2 {[%emt 0:00:09]} 33. h3 {[%emt 0:00:40]} Rd6 {[%emt 0:00:14]} 34. Ke4 {[%emt 0:00:40]} a5 {[%emt 0:00:12]} 35. Rb5 {[%emt 0:00:10]} Ke6 {[%emt 0:00:16]} 36. g4 {[%emt 0:00:12]} Kd7 {[%emt 0:00:03]} 37. Ke5 {[%emt 0:00:48]} Rc6 {[%emt 0:00:28]} 38. Rd5+ {[%emt 0:00:37]} Ke7 {[%emt 0:00:27]} 39. f5 {[%emt 0:00:03]} a4 {[%emt 0:00:22]} 40. h4 {[%emt 0:00:23]} Rc5 {[%emt 0:00:12]} 0-1

[Event "African Games-chT 2019"]
[Site "Casablanca"]
[Date "2019.08.25"]
[Round "7.27"]
[White "Tjaronda, Nicola"]
[Black "Essoo, Uvika"]
[Result "1-0"]
[ECO "A10"]
[WhiteElo "1545"]
[BlackElo "1187"]
[Annotator "NA"]
[PlyCount "47"]
[EventDate "2019.08.24"]
[EventType "team-tourn"]
[EventCountry "MAR"]
[SourceTitle "playchess.com"]
[Source "ChessBase"]
[SourceQuality "1"]
[WhiteTeam "Namibia"]
[BlackTeam "Mauritius"]
[WhiteTeamCountry "NAM"]
[BlackTeamCountry "MRI"]
[TimeControl "900+10"]

1. c4 {[%emt 0:00:00]} d5 {[%emt 0:00:03]} 2. cxd5 {[%emt 0:00:00]} Qxd5 {[%emt 0:00:11]} 3. Nc3 {[%emt 0:00:00]} Qd8 {[%emt 0:00:14]} 4. g3 {[%emt 0:00:07]} e5 {[%emt 0:00:23]} 5. Bg2 {[%emt 0:00:02]} Nc6 {[%emt 0:00:10]} 6. d3 {[%emt 0:00:22]} Bd6 {[%emt 0:00:44]} 7. Nf3 {[%emt 0:00:24]} Nge7 {[%emt 0:00:22]} 8. O-O {[%emt 0:00:29]} Be6 {[%emt 0:00:20]} 9. a3 {[%emt 0:00:38]} Qd7 {[%emt 0:00:04]} 10. Ne4 {[%emt 0:00:25]} O-O-O {[%emt 0:00:33]} 11. Nxd6+ {[%emt 0:00:40]} cxd6 {[%emt 0:00:28]} 12. Qc2 {[%emt 0:00:06]} Kb8 {[%emt 0:01:11]} 13. Be3 {[%emt 0:00:22]} f5 {[%emt 0:00:24]} 14. Qa4 {[%emt 0:00:49]} Rc8 {[%emt 0:01:46]} 15. Rac1 {[%emt 0:02:23]} d5 {[%emt 0:01:36]} 16. Nxe5 {[%emt 0:01:00]} Qc7 {[%emt 0:01:35]} 17. Nxc6+ {[%emt 0:00:23]} bxc6 {[%emt 0:01:36]} 18. Bf4 {[%emt 0:00:10]} Ka8 {[%emt 0:01:50]} 19. Bxc7 {[%emt 0:00:09]} Rxc7 {[%emt 0:00:11]} 20. Rc5 {[%emt 0:00:37]} Rb8 {[%emt 0:01:06]} 21. b4 {[%emt 0:00:26]} Bd7 {[%emt 0:00:50]} 22. Qc2 {[%emt 0:00:12]} Rb6 {[%emt 0:00:28]} 23. e4 {[%emt 0:00:14]} Rb5 {[%emt 0:00:42]} 24. Rxb5 {[%emt 0:00:07]} 1-0

[Event "African Games-chT 2019"]
[Site "Casablanca"]
[Date "2019.08.25"]
[Round "7.28"]
[White "Beekhy, Aamirah"]
[Black "Mentile, Lishen"]
[Result "0-1"]
[ECO "D02"]
[WhiteElo "1373"]
[BlackElo "1513"]
[Annotator "NA"]
[PlyCount "91"]
[EventDate "2019.08.24"]
[EventType "team-tourn"]
[EventCountry "MAR"]
[SourceTitle "playchess.com"]
[Source "ChessBase"]
[SourceQuality "1"]
[WhiteTeam "Mauritius"]
[BlackTeam "Namibia"]
[WhiteTeamCountry "MRI"]
[BlackTeamCountry "NAM"]
[TimeControl "900+10"]

1. d4 {[%emt 0:00:00]} d5 {[%emt 0:00:00]} 2. Nf3 {[%emt 0:00:00]} Nf6 {[%emt 0:00:00]} 3. h3 {[%emt 0:00:01]} Nc6 {[%emt 0:00:01]} 4. Bf4 {[%emt 0:00:03]} h6 {[%emt 0:00:08]} 5. e3 {[%emt 0:00:03]} a6 {[%emt 0:00:23]} 6. Be2 {[%emt 0:00:06]} Bf5 {[%emt 0:00:27]} 7. O-O {[%emt 0:00:28]} e6 {[%emt 0:00:03]} 8. a3 {[%emt 0:00:37]} Bd6 {[%emt 0:00:28]} 9. Bxd6 {[%emt 0:01:52]} cxd6 {[%emt 0:00:02]} 10. Nh4 {[%emt 0:01:50]} Bh7 {[%emt 0:00:16]} 11. c4 {[%emt 0:00:12]} dxc4 {[%emt 0:00:54]} 12. Bxc4 {[%emt 0:00:19]} Ne4 {[%emt 0:00:01]} 13. Nf3 {[%emt 0:00:20]} O-O {[%emt 0:01:12]} 14. Nc3 {[%emt 0:00:46]} d5 {[%emt 0:02:34]} 15. Bd3 {[%emt 0:01:02]} Nf6 {[%emt 0:00:24]} 16. Qc2 {[%emt 0:03:01]} Bxd3 {[%emt 0:01:34]} 17. Qxd3 {[%emt 0:00:12]} Qd6 {[%emt 0:00:30]} 18. Rac1 {[%emt 0:00:26]} Na5 {[%emt 0:01:04]} 19. Ne5 Rac8 {[%emt 0:00:41]} 20. Rfd1 {[%emt 0:03:55]} Rc7 {[%emt 0:01:26]} 21. Na4 {[%emt 0:00:46]} Rfc8 {[%emt 0:00:19]} 22. Qd2 {[%emt 0:00:52]} Nb3 {[%emt 0:01:00]} 23. Rxc7 {[%emt 0:01:18]} Rxc7 {[%emt 0:01:51]} 24. Qd3 {[%emt 0:00:33]} Na5 {[%emt 0:00:28]} 25. Nc5 Nc6 {[%emt 0:00:49]} 26. f4 {[%emt 0:00:23]} Qe7 {[%emt 0:01:14]} 27. Rc1 {[%emt 0:00:08]} Nb8 {[%emt 0:00:38]} 28. b4 {[%emt 0:00:12]} b6 {[%emt 0:00:01]} 29. Nb3 {[%emt 0:00:05]} Rxc1+ {[%emt 0:00:02]} 30. Nxc1 b5 {[%emt 0:00:08]} 31. Kf2 {[%emt 0:00:14]} Qc7 {[%emt 0:00:00]} 32. Nb3 {[%emt 0:00:13]} Ne4+ 33. Kf3 {[%emt 0:00:14]} Nc6 {[%emt 0:00:49]} 34. Nd2 {[%emt 0:00:05]} Nxe5+ {[%emt 0:00:33]} 35. dxe5 {[%emt 0:00:16]} Nxd2+ {[%emt 0:00:02]} 36. Qxd2 {[%emt 0:00:11]} Qc4 {[%emt 0:00:00]} 37. Kf2 {[%emt 0:00:16]} Kf8 {[%emt 0:00:05]} 38. g4 {[%emt 0:00:03]} Ke7 {[%emt 0:00:07]} 39. Kg3 Qe4 {[%emt 0:00:33]} 40. Qc1 {[%emt 0:00:18]} Qc4 {[%emt 0:00:02]} 41. Qd2 {[%emt 0:00:13]} f6 {[%emt 0:00:13]} 42. exf6+ Kxf6 {[%emt 0:00:02]} 43. h4 {[%emt 0:00:18]} g6 {[%emt 0:00:15]} 44. Qf2 {[%emt 0:00:16]} Qd3 {[%emt 0:00:07]} 45. g5+ {[%emt 0:00:10]} hxg5 {[%emt 0:00:01]} 46. fxg5+ {[%emt 0:00:00] Qf5 Qxf5+ Kxf5 Kf3 e5 Kg3 d4 exd4 exd4 Kf3 d3 Ke3 Kg4 Kxd3 Kxh4 Ke3 Kxg5 Kf3 Kh4 Kg2 Kg4 Kf2 Kh3 Kg1 Kg3 Kh1 g5 Kg1 g4 Kh1 Kf2 Kh2 g3+ Kh1 g2+} 0-1

[Event "African Games-chT 2019"]
[Site "Casablanca"]
[Date "2019.08.25"]
[Round "7.29"]
[White "Mwale, Joseph"]
[Black "Asante Debesai Zerabruk"]
[Result "1-0"]
[ECO "E06"]
[WhiteElo "2231"]
[BlackElo "1712"]
[Annotator "ChessBase"]
[PlyCount "67"]
[EventDate "2019.08.24"]
[EventType "team-tourn"]
[EventCountry "MAR"]
[SourceTitle "playchess.com"]
[Source "ChessBase"]
[SourceQuality "1"]
[WhiteTeam "MAW"]
[BlackTeam "Eritrea"]
[BlackTeamCountry "ERI"]
[TimeControl "900+10"]

1. d4 {[%emt 0:00:00]} Nf6 {[%emt 0:00:00]} 2. c4 {[%emt 0:00:00]} e6 {[%emt 0:00:00]} 3. g3 {[%emt 0:00:00]} d5 {[%emt 0:00:24]} 4. Bg2 {[%emt 0:00:00]} Be7 {[%emt 0:00:02]} 5. Nf3 {[%emt 0:00:00]} O-O {[%emt 0:00:09]} 6. O-O {[%emt 0:00:00]} c5 {[%emt 0:00:13]} 7. cxd5 {[%emt 0:00:30]} Nxd5 {[%emt 0:00:08]} 8. Nc3 {[%emt 0:00:29]} Nxc3 {[%emt 0:00:49]} 9. bxc3 {[%emt 0:00:02]} Qc7 {[%emt 0:00:06]} 10. e4 {[%emt 0:00:12]} Rd8 {[%emt 0:00:11]} 11. Bf4 {[%emt 0:00:08]} Qa5 {[%emt 0:00:49]} 12. Qb3 {[%emt 0:00:08]} b5 {[%emt 0:00:47]} 13. dxc5 {[%emt 0:00:25]} Bxc5 {[%emt 0:00:13]} 14. Rad1 {[%emt 0:00:15]} a6 {[%emt 0:02:02]} 15. Rxd8+ {[%emt 0:03:11]} Qxd8 {[%emt 0:00:02]} 16. a4 {[%emt 0:01:15]} Qb6 {[%emt 0:00:24]} 17. Nd4 {[%emt 0:00:47]} Bd7 {[%emt 0:02:29]} 18. e5 {[%emt 0:00:43]} Bc6 {[%emt 0:00:54]} 19. a5 {[%emt 0:00:54]} Qc7 {[%emt 0:00:36]} 20. Rd1 {[%emt 0:03:21]} Bxg2 {[%emt 0:00:31]} 21. Nxe6 {[%emt 0:01:15]} fxe6 {[%emt 0:03:58]} 22. Qxe6+ {[%emt 0:00:02]} Kf8 {[%emt 0:00:01]} 23. Qf5+ {[%emt 0:00:31]} Kg8 {[%emt 0:00:48]} 24. Qe6+ {[%emt 0:00:17]} Kf8 {[%emt 0:00:07]} 25. Qf5+ {[%emt 0:00:15]} Kg8 {[%emt 0:00:02]} 26. Kxg2 {[%emt 0:00:01]} Ra7 {[%emt 0:01:29]} 27. e6 {[%emt 0:00:37]} Qe7 {[%emt 0:00:32]} 28. Bxb8 {[%emt 0:00:29]} Qb7+ {[%emt 0:00:01]} 29. f3 {[%emt 0:00:01]} Qxb8 {[%emt 0:00:07]} 30. Qxc5 {[%emt 0:00:01]} Rc7 {[%emt 0:00:17]} 31. Qd5 {[%emt 0:00:14]} Kf8 {[%emt 0:00:21]} 32. Qf5+ {[%emt 0:00:20]} Kg8 {[%emt 0:00:07]} 33. Qg5 {[%emt 0:00:02]} Kf8 {[%emt 0:00:14]} 34. Rd8+ {[%emt 0:00:02]} 1-0

[Event "African Games-chT 2019"]
[Site "Casablanca"]
[Date "2019.08.25"]
[Round "7.34"]
[White "Koualet-Bebondi, Vianney Archeveq"]
[Black "Traore, Bakary"]
[Result "0-1"]
[ECO "C20"]
[WhiteElo "1679"]
[BlackElo "2189"]
[Annotator "ChessBase"]
[PlyCount "76"]
[EventDate "2019.08.24"]
[EventType "team-tourn"]
[EventCountry "MAR"]
[SourceTitle "playchess.com"]
[Source "ChessBase"]
[SourceQuality "1"]
[WhiteTeam "CAF"]
[BlackTeam "Mali"]
[BlackTeamCountry "MLI"]
[TimeControl "900+10"]

1. e4 {[%emt 0:00:00]} e5 {[%emt 0:00:00]} 2. Be2 {[%emt 0:00:00]} Nf6 {[%emt 0:00:00]} 3. f3 {[%emt 0:00:00]} Bc5 {[%emt 0:00:00]} 4. c3 {[%emt 0:00:11]} Nc6 {[%emt 0:00:00]} 5. Nh3 {[%emt 0:00:07]} d5 {[%emt 0:00:05]} 6. b4 {[%emt 0:00:13]} Bb6 {[%emt 0:00:03]} 7. Ng5 {[%emt 0:00:24]} h6 {[%emt 0:00:04]} 8. exd5 {[%emt 0:00:16]} Nxd5 {[%emt 0:00:04]} 9. Ne4 {[%emt 0:00:07]} Nf4 {[%emt 0:00:08]} 10. Bf1 {[%emt 0:00:59]} Bf5 {[%emt 0:00:39]} 11. Na3 {[%emt 0:00:42]} Bxe4 {[%emt 0:00:35]} 12. fxe4 {[%emt 0:00:02]} Nxg2+ {[%emt 0:00:48]} 13. Bxg2 {[%emt 0:01:42]} Qh4+ {[%emt 0:00:02]} 14. Ke2 {[%emt 0:00:02]} Qf2+ {[%emt 0:00:01]} 15. Kd3 {[%emt 0:00:01]} Qxg2 {[%emt 0:00:06]} 16. Kc2 {[%emt 0:00:09]} Qxe4+ {[%emt 0:00:13]} 17. Kb2 {[%emt 0:00:19]} O-O-O {[%emt 0:00:13]} 18. Nc2 {[%emt 0:00:14]} f5 {[%emt 0:00:54]} 19. a4 {[%emt 0:00:06]} a5 {[%emt 0:00:11]} 20. b5 {[%emt 0:00:04]} Ne7 {[%emt 0:00:03]} 21. Ra2 {[%emt 0:01:19]} Rd3 {[%emt 0:00:25]} 22. Ne1 {[%emt 0:00:15]} Qxh1 {[%emt 0:00:09]} 23. Qe2 {[%emt 0:00:26]} Rd7 {[%emt 0:00:36]} 24. Qxe5 {[%emt 0:00:07]} Qe4 {[%emt 0:00:04]} 25. Qg3 {[%emt 0:00:18]} f4 {[%emt 0:00:10]} 26. Qf3 {[%emt 0:01:49]} Qxe1 {[%emt 0:00:12]} 27. Qxf4 {[%emt 0:00:16]} Rhd8 {[%emt 0:00:07]} 28. h4 {[%emt 0:00:49]} Kb8 {[%emt 0:00:12]} 29. Kc2 {[%emt 0:00:56]} Nd5 {[%emt 0:00:10]} 30. Qh2 {[%emt 0:00:28]} Nf6 {[%emt 0:00:08]} 31. Kb1 {[%emt 0:00:30]} Ne4 {[%emt 0:00:06]} 32. Qg2 {[%emt 0:00:50]} Nxd2+ {[%emt 0:00:00]} 33. Kc2 {[%emt 0:00:23]} Ne4 {[%emt 0:00:00]} 34. Qg6 {[%emt 0:01:22]} Qxc3+ {[%emt 0:00:00]} 35. Kb1 {[%emt 0:00:11]} Rd1 {[%emt 0:00:00]} 36. Rc2 {[%emt 0:01:02]} Qb3+ {[%emt 0:00:00]} 37. Rb2 {[%emt 0:01:49]} Rxc1+ {[%emt 0:00:00]} 38. Kxc1 {[%emt 0:00:20]} Rd1# {[%emt 0:00:00]} 0-1

[Event "African Games-chT 2019"]
[Site "Casablanca"]
[Date "2019.08.25"]
[Round "8.3"]
[White "Mwango, Lorita"]
[Black "Wafa, Shrook"]
[Result "1-0"]
[ECO "A88"]
[WhiteElo "1947"]
[BlackElo "2183"]
[Annotator "NA"]
[PlyCount "113"]
[EventDate "2019.08.24"]
[EventType "team-tourn"]
[EventCountry "MAR"]
[SourceTitle "playchess.com"]
[Source "ChessBase"]
[SourceQuality "1"]
[WhiteTeam "Zambia"]
[BlackTeam "Egypt"]
[WhiteTeamCountry "ZAM"]
[BlackTeamCountry "EGY"]
[TimeControl "900+10"]

1. c4 {[%emt 0:00:00]} f5 {[%emt 0:00:00]} 2. Nc3 {[%emt 0:00:00]} Nf6 {[%emt 0:00:00]} 3. g3 {[%emt 0:00:00]} g6 {[%emt 0:00:04]} 4. Bg2 {[%emt 0:00:00]} Bg7 {[%emt 0:00:03]} 5. Nf3 {[%emt 0:00:11]} O-O {[%emt 0:00:09]} 6. O-O {[%emt 0:00:03]} d6 {[%emt 0:00:08]} 7. d4 {[%emt 0:00:06]} c6 {[%emt 0:00:17]} 8. d5 {[%emt 0:00:15]} e5 {[%emt 0:00:46]} 9. Bg5 {[%emt 0:00:22]} h6 {[%emt 0:01:17]} 10. Bxf6 {[%emt 0:00:07]} Qxf6 {[%emt 0:00:08]} 11. e4 {[%emt 0:00:05]} c5 {[%emt 0:01:08]} 12. Nh4 {[%emt 0:01:52]} f4 {[%emt 0:00:31]} 13. Nf3 {[%emt 0:01:32]} g5 {[%emt 0:00:32]} 14. Nd2 {[%emt 0:00:48]} g4 {[%emt 0:01:14]} 15. f3 {[%emt 0:00:10]} h5 {[%emt 0:00:19]} 16. Ne2 {[%emt 0:00:55]} Bh6 {[%emt 0:01:25]} 17. Qe1 {[%emt 0:04:22]} Qg6 {[%emt 0:01:22]} 18. Kh1 {[%emt 0:00:15]} Nd7 {[%emt 0:00:07]} 19. Rf2 {[%emt 0:02:03]} Nf6 {[%emt 0:01:33]} 20. Rd1 {[%emt 0:02:12]} Kh8 {[%emt 0:01:12]} 21. Qf1 {[%emt 0:00:31]} Bd7 {[%emt 0:00:52]} 22. Ng1 {[%emt 0:02:25]} gxf3 {[%emt 0:00:21]} 23. Bxf3 {[%emt 0:00:13]} Ng4 {[%emt 0:01:30]} 24. Bxg4 {[%emt 0:00:11]} hxg4 {[%emt 0:00:09]} 25. Qe1 {[%emt 0:00:20]} Kg7 {[%emt 0:00:52]} 26. gxf4 {[%emt 0:00:09]} Rxf4 {[%emt 0:00:22]} 27. Rg2 {[%emt 0:00:01]} Raf8 {[%emt 0:00:26]} 28. Ne2 {[%emt 0:00:01]} R4f6 {[%emt 0:00:14]} 29. Ng3 {[%emt 0:00:12]} Bf4 {[%emt 0:00:34]} 30. Ndf1 {[%emt 0:00:11]} Kf7 {[%emt 0:00:30]} 31. Qe2 {[%emt 0:00:05]} Ke7 {[%emt 0:00:10]} 32. a3 {[%emt 0:00:24]} Rh8 {[%emt 0:00:27]} 33. b4 {[%emt 0:00:04]} b6 {[%emt 0:00:06]} 34. bxc5 {[%emt 0:00:11]} bxc5 {[%emt 0:00:02]} 35. Rb1 {[%emt 0:00:01]} Qg5 {[%emt 0:00:22]} 36. Rb7 {[%emt 0:00:20]} Bxg3 {[%emt 0:00:06]} 37. Nxg3 {[%emt 0:00:05]} Qc1+ {[%emt 0:00:31]} 38. Rg1 {[%emt 0:00:01]} Qxa3 {[%emt 0:00:06]} 39. Qxg4 {[%emt 0:00:08]} Qf3+ {[%emt 0:00:55]} 40. Qxf3 {[%emt 0:00:01]} Rxf3 {[%emt 0:00:01]} 41. Nf5+ {[%emt 0:00:13]} Kd8 {[%emt 0:00:10]} 42. Nxd6 {[%emt 0:00:25]} Rfh3 {[%emt 0:00:14]} 43. Nf7+ {[%emt 0:00:25]} Kc8 {[%emt 0:00:05]} 44. Nxh8 {[%emt 0:00:05]} Kxb7 {[%emt 0:00:03]} 45. Ng6 {[%emt 0:00:16]} Rh5 {[%emt 0:00:25]} 46. Nf8 {[%emt 0:00:11]} Ba4 {[%emt 0:00:13]} 47. Rg7+ {[%emt 0:00:04]} Ka6 {[%emt 0:00:03]} 48. d6 {[%emt 0:00:03]} Rh3 {[%emt 0:00:10]} 49. Ne6 {[%emt 0:00:08]} Kb6 {[%emt 0:00:09]} 50. d7 {[%emt 0:00:02]} Bxd7 {[%emt 0:00:06]} 51. Rxd7 {[%emt 0:00:01]} Re3 {[%emt 0:00:03]} 52. Rd6+ {[%emt 0:00:04]} Ka5 {[%emt 0:00:04]} 53. Nxc5 {[%emt 0:00:04]} Kb4 {[%emt 0:00:01]} 54. Nd3+ {[%emt 0:00:06]} Kxc4 {[%emt 0:00:15]} 55. Nxe5+ {[%emt 0:00:01]} Kc5 {[%emt 0:00:01]} 56. Rd5+ {[%emt 0:00:07]} Kb6 {[%emt 0:00:05]} 57. Nc4+ {[%emt 0:00:03]} 1-0

[Event "African Games-chT 2019"]
[Site "Casablanca"]
[Date "2019.08.25"]
[Round "8.4"]
[White "Wafa, Shahenda"]
[Black "Mululu Linah"]
[Result "1-0"]
[ECO "B40"]
[WhiteElo "2139"]
[BlackElo "1633"]
[Annotator "NA"]
[PlyCount "53"]
[EventDate "2019.08.24"]
[EventType "team-tourn"]
[EventCountry "MAR"]
[SourceTitle "playchess.com"]
[Source "ChessBase"]
[SourceQuality "1"]
[WhiteTeam "Egypt"]
[BlackTeam "Zambia"]
[WhiteTeamCountry "EGY"]
[BlackTeamCountry "ZAM"]
[TimeControl "900+10"]

1. e4 {[%emt 0:00:00]} c5 {[%emt 0:00:00]} 2. Nf3 {[%emt 0:00:00]} e6 {[%emt 0:00:00]} 3. c4 {[%emt 0:00:04]} a6 {[%emt 0:00:01]} 4. d4 {[%emt 0:00:02]} cxd4 {[%emt 0:00:19]} 5. Nxd4 {[%emt 0:00:03]} Qc7 {[%emt 0:00:19]} 6. Nc3 {[%emt 0:00:16]} Nf6 {[%emt 0:00:05]} 7. Qd3 {[%emt 0:01:23]} b6 {[%emt 0:01:10]} 8. Be2 {[%emt 0:02:05]} Bb7 {[%emt 0:00:08]} 9. O-O {[%emt 0:00:19]} Be7 {[%emt 0:00:02]} 10. f4 {[%emt 0:00:06]} d6 {[%emt 0:00:04]} 11. b3 {[%emt 0:00:43]} Nbd7 {[%emt 0:00:07]} 12. Bf3 {[%emt 0:00:41]} O-O {[%emt 0:01:20]} 13. Be3 {[%emt 0:01:31]} Rac8 {[%emt 0:02:23]} 14. Rac1 {[%emt 0:00:05]} Qb8 {[%emt 0:00:14]} 15. b4 {[%emt 0:03:16]} Rfe8 {[%emt 0:02:34]} 16. a3 {[%emt 0:00:08]} Bd8 {[%emt 0:00:05]} 17. g4 {[%emt 0:00:14]} Nf8 {[%emt 0:00:41]} 18. g5 {[%emt 0:00:08]} N6d7 {[%emt 0:00:28]} 19. Nde2 {[%emt 0:00:57]} Bc7 {[%emt 0:01:18]} 20. Ng3 {[%emt 0:00:35]} d5 {[%emt 0:00:21]} 21. cxd5 {[%emt 0:00:11]} Bxf4 {[%emt 0:00:18]} 22. Bxf4 {[%emt 0:00:12]} Qxf4 {[%emt 0:00:04]} 23. Bh5 {[%emt 0:00:07]} Qxg5 {[%emt 0:00:29]} 24. Bxf7+ {[%emt 0:00:09]} Kh8 {[%emt 0:00:01]} 25. Bxe8 {[%emt 0:00:08]} Rxe8 {[%emt 0:00:03]} 26. Qf3 {[%emt 0:00:24]} Ne5 {[%emt 0:01:08]} 27. Qxf8+ {[%emt 0:00:08]} 1-0

[Event "African Games-chT 2019"]
[Site "Casablanca"]
[Date "2019.08.25"]
[Round "8.5"]
[White "Zaibi, Amir"]
[Black "Bellahcene, Bilel"]
[Result "1-0"]
[ECO "A13"]
[WhiteElo "2367"]
[BlackElo "2550"]
[Annotator "ChessBase"]
[PlyCount "77"]
[EventDate "2019.08.24"]
[EventType "team-tourn"]
[EventCountry "MAR"]
[SourceTitle "playchess.com"]
[Source "ChessBase"]
[SourceQuality "1"]
[WhiteTeam "Tunisia"]
[BlackTeam "Algeria"]
[WhiteTeamCountry "TUN"]
[BlackTeamCountry "ALG"]
[TimeControl "900+10"]

1. c4 {[%emt 0:00:00]} e6 {[%emt 0:00:02]} 2. Nf3 {[%emt 0:00:00]} Nf6 {[%emt 0:00:00]} 3. g3 {[%emt 0:00:00]} d5 {[%emt 0:00:01]} 4. Bg2 {[%emt 0:00:00]} dxc4 {[%emt 0:00:01]} 5. Qa4+ {[%emt 0:00:37]} c6 {[%emt 0:00:00]} 6. Qxc4 b5 7. Qc2 {[%emt 0:00:05]} Bb7 {[%emt 0:00:01]} 8. O-O {[%emt 0:00:20]} Nbd7 {[%emt 0:00:01]} 9. d4 {[%emt 0:00:06]} c5 {[%emt 0:00:01]} 10. a4 {[%emt 0:00:15]} b4 {[%emt 0:00:08]} 11. a5 {[%emt 0:00:17]} Rc8 {[%emt 0:00:11]} 12. a6 {[%emt 0:00:56]} Bxf3 {[%emt 0:01:52]} 13. Bxf3 {[%emt 0:00:12]} cxd4 {[%emt 0:00:01]} 14. Qa4 {[%emt 0:00:17]} Bd6 {[%emt 0:00:40]} 15. Bb7 {[%emt 0:00:24]} Rc7 {[%emt 0:00:29]} 16. Bd2 {[%emt 0:02:32]} Qe7 {[%emt 0:01:05]} 17. Qa5 {[%emt 0:00:02]} Rc2 {[%emt 0:00:10]} 18. Qa4 {[%emt 0:00:44]} Rc7 {[%emt 0:01:37]} 19. Qa5 {[%emt 0:00:01]} Nb6 {[%emt 0:00:34]} 20. e3 {[%emt 0:01:10]} O-O {[%emt 0:02:23]} 21. exd4 {[%emt 0:00:07]} Nfd5 {[%emt 0:00:10]} 22. Qb5 {[%emt 0:01:31]} f5 {[%emt 0:00:35]} 23. f4 {[%emt 0:02:03]} Qf6 {[%emt 0:01:16]} 24. Qd3 {[%emt 0:00:51]} Rc4 {[%emt 0:00:01]} 25. Bxd5 {[%emt 0:01:37]} exd5 {[%emt 0:00:03]} 26. Be3 {[%emt 0:00:01]} Rc7 {[%emt 0:00:56]} 27. Nd2 {[%emt 0:00:30]} Nc4 {[%emt 0:00:17]} 28. b3 {[%emt 0:00:46]} Nxe3 {[%emt 0:00:25]} 29. Qxe3 {[%emt 0:00:04]} Rc3 {[%emt 0:00:03]} 30. Qf2 {[%emt 0:00:16]} Bc7 {[%emt 0:01:07]} 31. Nf3 {[%emt 0:00:36]} Bb6 {[%emt 0:00:06]} 32. Kh1 {[%emt 0:00:22]} Rfc8 {[%emt 0:01:09]} 33. Rae1 {[%emt 0:00:24]} Rxb3 34. Qa2 {[%emt 0:00:31]} Ra3 {[%emt 0:01:17]} 35. Qxd5+ Qf7 36. Qb7 {[%emt 0:00:28]} Rd8 {[%emt 0:02:13]} 37. Re7 {[%emt 0:00:52]} Qg6 {[%emt 0:00:05]} 38. Ne5 {[%emt 0:00:22]} Qh6 {[%emt 0:00:28]} 39. Re8+ {[%emt 0:00:04]} 1-0